[Event "*** SCC Grand Prix: Titled Tuesday Blitz"]
[Site "Chess.com"]
[Date "2020.07.14"]
[Round "6"]
[White "Fandorine"]
[Black "Undisputed92"]
[Result "1-0"]
[WhiteElo "2943"]
[BlackElo "2627"]
[TimeControl "180+1"]
[EndTime "11:08:28 PDT"]
[Termination "Fandorine won on time"]

1. e4 {[%clk 0:03:00.9]} 1... e5 {[%clk 0:02:59.3]} 2. Nf3 {[%clk 0:02:57.8]}
2... Nc6 {[%clk 0:02:59.5]} 3. Bc4 {[%clk 0:02:57.9]} 3... Nf6 {[%clk
0:02:58.4]} 4. d3 {[%clk 0:02:57.3]} 4... Bc5 {[%clk 0:02:55.7]} 5. Nbd2 {[%clk
0:02:57.2]} 5... O-O {[%clk 0:02:55.3]} 6. h3 {[%clk 0:02:55.7]} 6... Re8 {[%clk
0:02:54.2]} 7. c3 {[%clk 0:02:55.1]} 7... a6 {[%clk 0:02:47.4]} 8. Bb3 {[%clk
0:02:54.9]} 8... d5 {[%clk 0:02:45.3]} 9. exd5 {[%clk 0:02:54.8]} 9... Nxd5
{[%clk 0:02:46.2]} 10. Ne4 {[%clk 0:02:55.5]} 10... Bf8 {[%clk 0:02:43]} 11. O-O
{[%clk 0:02:55.4]} 11... f6 {[%clk 0:02:38.5]} 12. Re1 {[%clk 0:02:33.4]} 12...
Be6 {[%clk 0:02:37.4]} 13. Bc2 {[%clk 0:02:29.7]} 13... Qd7 {[%clk 0:02:34.6]}
14. Ng3 {[%clk 0:02:14]} 14... Bf7 {[%clk 0:02:29.4]} 15. Nh4 {[%clk 0:02:10.3]}
15... Rad8 {[%clk 0:02:24.6]} 16. Bd2 {[%clk 0:02:05.8]} 16... g6 {[%clk
0:02:22.3]} 17. Nf3 {[%clk 0:02:02.7]} 17... Bg7 {[%clk 0:02:21.9]} 18. Ne4
{[%clk 0:02:01.2]} 18... b6 {[%clk 0:02:15.1]} 19. a4 {[%clk 0:02:01]} 19... a5
{[%clk 0:02:13.5]} 20. Qc1 {[%clk 0:01:53.4]} 20... Nce7 {[%clk 0:02:05.5]} 21.
Bh6 {[%clk 0:01:46.1]} 21... Nf5 {[%clk 0:02:02.6]} 22. Bd2 {[%clk 0:01:45.3]}
22... Nd6 {[%clk 0:01:52.2]} 23. Qd1 {[%clk 0:01:31.6]} 23... h6 {[%clk
0:01:44]} 24. Qe2 {[%clk 0:01:30]} 24... Kh7 {[%clk 0:01:41.3]} 25. Qf1 {[%clk
0:01:27.7]} 25... f5 {[%clk 0:01:31.7]} 26. Ng3 {[%clk 0:01:27.7]} 26... Qc6
{[%clk 0:01:16]} 27. Rac1 {[%clk 0:01:21]} 27... Re7 {[%clk 0:01:11.8]} 28. Red1
{[%clk 0:00:53.4]} 28... Rde8 {[%clk 0:01:09.8]} 29. Ne2 {[%clk 0:00:53.7]}
29... Qb7 {[%clk 0:01:04.4]} 30. d4 {[%clk 0:00:39.9]} 30... e4 {[%clk
0:01:01.5]} 31. Ne5 {[%clk 0:00:40.1]} 31... Bxe5 {[%clk 0:00:55.3]} 32. dxe5
{[%clk 0:00:41]} 32... Rxe5 {[%clk 0:00:55.9]} 33. Be1 {[%clk 0:00:41.4]} 33...
Nf6 {[%clk 0:00:50.6]} 34. b3 {[%clk 0:00:40.9]} 34... Nd5 {[%clk 0:00:32]} 35.
c4 {[%clk 0:00:37.4]} 35... Nb4 {[%clk 0:00:30.8]} 36. Bc3 {[%clk 0:00:37.8]}
36... R5e7 {[%clk 0:00:24.5]} 37. Bb1 {[%clk 0:00:37.7]} 37... e3 {[%clk
0:00:19.1]} 38. f3 {[%clk 0:00:37.3]} 38... Qc6 {[%clk 0:00:17.5]} 39. Qe1
{[%clk 0:00:36.4]} 39... Qc5 {[%clk 0:00:16.8]} 40. Bd4 {[%clk 0:00:27.6]} 40...
Qc6 {[%clk 0:00:17.1]} 41. Qh4 {[%clk 0:00:22.6]} 41... Qd7 {[%clk 0:00:14.3]}
42. Qf6 {[%clk 0:00:18.2]} 42... Rg8 {[%clk 0:00:12.3]} 43. Ba1 {[%clk
0:00:18.4]} 43... Qe6 {[%clk 0:00:12]} 44. Qd4 {[%clk 0:00:10.2]} 44... Nc6
{[%clk 0:00:12]} 45. Qf4 {[%clk 0:00:08.2]} 45... g5 {[%clk 0:00:10.8]} 46. Qh2
{[%clk 0:00:06.8]} 46... Bg6 {[%clk 0:00:10.7]} 47. h4 {[%clk 0:00:06.8]} 47...
g4 {[%clk 0:00:09.2]} 48. Nf4 {[%clk 0:00:06.6]} 48... Qf7 {[%clk 0:00:08.6]}
49. h5 {[%clk 0:00:05]} 49... Bxh5 {[%clk 0:00:08.8]} 50. Qxh5 {[%clk
0:00:03.7]} 50... Qxh5 {[%clk 0:00:08.3]} 51. Nxh5 {[%clk 0:00:04.6]} 51... gxf3
{[%clk 0:00:07.5]} 52. Nf6+ {[%clk 0:00:05.1]} 52... Kg6 {[%clk 0:00:06.7]} 53.
Nxg8 {[%clk 0:00:06]} 53... f2+ {[%clk 0:00:06.7]} 54. Kh2 {[%clk 0:00:06.5]}
54... Re4 {[%clk 0:00:06]} 55. Rf1 {[%clk 0:00:06.1]} 55... Rh4+ {[%clk
0:00:05.5]} 56. Kg3 {[%clk 0:00:06]} 56... Rg4+ {[%clk 0:00:05.8]} 57. Kf3
{[%clk 0:00:06.5]} 57... Ne4 {[%clk 0:00:05.1]} 58. Bxe4 {[%clk 0:00:06.2]}
58... Rxe4 {[%clk 0:00:04.4]} 59. g4 {[%clk 0:00:06.2]} 59... Rxg4 {[%clk
0:00:02.1]} 60. Kxe3 {[%clk 0:00:06.2]} 1-0

[Event "*** SCC Grand Prix: Titled Tuesday Blitz"]
[Site "Chess.com"]
[Date "2020.07.14"]
[Round "6"]
[White "ikhasu"]
[Black "shav3184"]
[Result "0-1"]
[WhiteElo "2408"]
[BlackElo "2294"]
[TimeControl "180+1"]
[EndTime "11:08:29 PDT"]
[Termination "shav3184 won by checkmate"]

1. e4 {[%clk 0:03:00.9]} 1... e5 {[%clk 0:02:59.6]} 2. Nf3 {[%clk 0:03:00.3]}
2... Nc6 {[%clk 0:02:59.7]} 3. d4 {[%clk 0:02:58.6]} 3... exd4 {[%clk
0:03:00.6]} 4. Nxd4 {[%clk 0:02:58.7]} 4... Nf6 {[%clk 0:03:00.8]} 5. Nxc6
{[%clk 0:02:58.5]} 5... bxc6 {[%clk 0:03:01.7]} 6. e5 {[%clk 0:02:58.7]} 6...
Qe7 {[%clk 0:03:01.5]} 7. Qe2 {[%clk 0:02:59.3]} 7... Nd5 {[%clk 0:03:02.4]} 8.
h4 {[%clk 0:02:59.4]} 8... Qe6 {[%clk 0:02:19.5]} 9. c4 {[%clk 0:02:56.6]} 9...
Nb6 {[%clk 0:02:19]} 10. b3 {[%clk 0:02:51]} 10... a5 {[%clk 0:02:08.8]} 11. g3
{[%clk 0:02:44.6]} 11... a4 {[%clk 0:02:01]} 12. Bh3 {[%clk 0:02:44.3]} 12...
Bb4+ {[%clk 0:01:42]} 13. Kf1 {[%clk 0:02:41.6]} 13... Qe7 {[%clk 0:01:34.6]}
14. Bb2 {[%clk 0:02:30.1]} 14... axb3 {[%clk 0:01:17.2]} 15. axb3 {[%clk
0:02:29.5]} 15... Rxa1 {[%clk 0:01:18.1]} 16. Bxa1 {[%clk 0:02:29.3]} 16... O-O
{[%clk 0:01:19]} 17. Nd2 {[%clk 0:02:24]} 17... d5 {[%clk 0:01:10.3]} 18. exd6
{[%clk 0:01:35.7]} 18... Qxd6 {[%clk 0:00:43.1]} 19. Bxc8 {[%clk 0:01:26.6]}
19... Nxc8 {[%clk 0:00:40]} 20. Ne4 {[%clk 0:01:25.7]} 20... Qe6 {[%clk
0:00:35]} 21. Qf3 {[%clk 0:00:58.4]} 21... Nd6 {[%clk 0:00:30]} 22. Ng5 {[%clk
0:00:53]} 22... Qg6 {[%clk 0:00:28.6]} 23. Kg2 {[%clk 0:00:45.5]} 23... h6
{[%clk 0:00:25.1]} 24. Nh3 {[%clk 0:00:45.5]} 24... c5 {[%clk 0:00:24]} 25. Nf4
{[%clk 0:00:44.6]} 25... Qc2 {[%clk 0:00:23.2]} 26. Nd5 {[%clk 0:00:30]} 26...
Ne4 {[%clk 0:00:15.5]} 27. Ne3 {[%clk 0:00:17.2]} 27... Qd3 {[%clk 0:00:12.4]}
28. Bxg7 {[%clk 0:00:15.6]} 28... Nd2 {[%clk 0:00:09.3]} 29. Qg4 {[%clk
0:00:11.8]} 29... Re8 {[%clk 0:00:08.6]} 30. Bf6+ {[%clk 0:00:06.3]} 30... Qg6
{[%clk 0:00:08]} 31. Qxg6+ {[%clk 0:00:06]} 31... fxg6 {[%clk 0:00:08.9]} 32.
Rd1 {[%clk 0:00:05.9]} 32... Nxb3 {[%clk 0:00:08.8]} 33. Bb2 {[%clk 0:00:04.3]}
33... Nd2 {[%clk 0:00:08.3]} 34. Bc1 {[%clk 0:00:03.8]} 34... Ne4 {[%clk
0:00:06.9]} 35. Rd7 {[%clk 0:00:03.5]} 35... c6 {[%clk 0:00:04.8]} 36. Bb2
{[%clk 0:00:02.9]} 36... Kf8 {[%clk 0:00:03]} 37. Ng4 {[%clk 0:00:01.9]} 37...
Re7 {[%clk 0:00:02.8]} 38. Nxh6 {[%clk 0:00:01.7]} 38... Rxd7 {[%clk 0:00:02.5]}
39. Ng4 {[%clk 0:00:02.3]} 39... Rd2 {[%clk 0:00:02.5]} 40. h5 {[%clk
0:00:02.8]} 40... Rc2 {[%clk 0:00:03.3]} 41. hxg6 {[%clk 0:00:02.9]} 41... Rxb2
{[%clk 0:00:02.7]} 42. g7+ {[%clk 0:00:03.8]} 42... Kxg7 {[%clk 0:00:03.6]} 43.
Ne5 {[%clk 0:00:03.8]} 43... Rxf2+ {[%clk 0:00:03.4]} 44. Kh3 {[%clk 0:00:03.8]}
44... Rc2 {[%clk 0:00:04.3]} 45. Nxc6 {[%clk 0:00:04.3]} 45... Rc3 {[%clk
0:00:05.2]} 46. Nxb4 {[%clk 0:00:05.2]} 46... cxb4 {[%clk 0:00:05.9]} 47. Kg4
{[%clk 0:00:06.1]} 47... Rxc4 {[%clk 0:00:05.6]} 48. Kf4 {[%clk 0:00:06.9]}
48... Nxg3+ {[%clk 0:00:06.5]} 49. Ke5 {[%clk 0:00:07.4]} 49... Rc3 {[%clk
0:00:07.4]} 50. Kd5 {[%clk 0:00:08.3]} 50... b3 {[%clk 0:00:08.3]} 51. Kd4
{[%clk 0:00:09.1]} 51... b2 {[%clk 0:00:09.2]} 52. Kxc3 {[%clk 0:00:09.9]} 52...
b1=Q {[%clk 0:00:08.9]} 53. Kc4 {[%clk 0:00:08.4]} 53... Qe4+ {[%clk 0:00:09.8]}
54. Kc5 {[%clk 0:00:06.5]} 54... Kf6 {[%clk 0:00:10.7]} 55. Kd6 {[%clk
0:00:06.5]} 55... Qe5+ {[%clk 0:00:10.9]} 56. Kd7 {[%clk 0:00:06.7]} 56... Ne4
{[%clk 0:00:10.9]} 57. Kd8 {[%clk 0:00:07.1]} 57... Qc5 {[%clk 0:00:10.9]} 58.
Ke8 {[%clk 0:00:06.7]} 58... Qc8# {[%clk 0:00:10.7]} 0-1

[Event "*** SCC Grand Prix: Titled Tuesday Blitz"]
[Site "Chess.com"]
[Date "2020.07.14"]
[Round "6"]
[White "mfwagnerpeixoto"]
[Black "plumalka"]
[Result "1/2-1/2"]
[WhiteElo "2243"]
[BlackElo "2404"]
[TimeControl "180+1"]
[EndTime "11:08:29 PDT"]
[Termination "Game drawn by agreement"]

1. d4 {[%clk 0:03:00.9]} 1... Nf6 {[%clk 0:02:59.7]} 2. Nf3 {[%clk 0:02:58.3]}
2... c5 {[%clk 0:02:59.8]} 3. e3 {[%clk 0:02:56.9]} 3... g6 {[%clk 0:02:58.4]}
4. Be2 {[%clk 0:02:46.6]} 4... Bg7 {[%clk 0:02:56.8]} 5. O-O {[%clk 0:02:47]}
5... b6 {[%clk 0:02:55.4]} 6. c4 {[%clk 0:02:42.6]} 6... cxd4 {[%clk 0:02:48.7]}
7. exd4 {[%clk 0:02:41.7]} 7... d5 {[%clk 0:02:48.6]} 8. Nc3 {[%clk 0:02:35.6]}
8... O-O {[%clk 0:02:46.5]} 9. cxd5 {[%clk 0:02:27]} 9... Nxd5 {[%clk
0:02:44.6]} 10. Ne5 {[%clk 0:02:24]} 10... Bb7 {[%clk 0:02:38.1]} 11. Bf3 {[%clk
0:02:21.2]} 11... e6 {[%clk 0:02:30]} 12. Re1 {[%clk 0:02:15]} 12... Nd7 {[%clk
0:02:24.2]} 13. Nxd5 {[%clk 0:02:08.2]} 13... Bxd5 {[%clk 0:02:20.5]} 14. Bxd5
{[%clk 0:02:06.2]} 14... exd5 {[%clk 0:02:21.4]} 15. Nc6 {[%clk 0:02:03.5]}
15... Qc7 {[%clk 0:02:15]} 16. Ne7+ {[%clk 0:02:00.3]} 16... Kh8 {[%clk
0:02:15.1]} 17. Nxd5 {[%clk 0:02:01.2]} 17... Qd6 {[%clk 0:02:13.4]} 18. Nc3
{[%clk 0:01:54]} 18... Qxd4 {[%clk 0:02:05.9]} 19. Qxd4 {[%clk 0:01:46]} 19...
Bxd4 {[%clk 0:02:06.8]} 20. Rd1 {[%clk 0:01:31.6]} 20... Bxc3 {[%clk 0:02:06.8]}
21. bxc3 {[%clk 0:01:32.5]} 21... Nc5 {[%clk 0:02:06.8]} 22. Be3 {[%clk
0:01:31.9]} 22... Na4 {[%clk 0:02:06.1]} 23. Rd7 {[%clk 0:01:26.4]} 23... Kg8
{[%clk 0:01:59.2]} 24. Bd4 {[%clk 0:01:18]} 24... Rfc8 {[%clk 0:01:57.8]} 25.
Rc1 {[%clk 0:01:06]} 25... Rc4 {[%clk 0:01:56.8]} 26. h3 {[%clk 0:00:58]} 26...
Rac8 {[%clk 0:01:56]} 27. Re1 {[%clk 0:00:49.3]} 27... Nxc3 {[%clk 0:01:41]} 28.
Bxc3 {[%clk 0:00:48]} 28... Rxc3 {[%clk 0:01:41.9]} 29. Ree7 {[%clk 0:00:44.4]}
29... Rf8 {[%clk 0:01:33.2]} 30. Rxa7 {[%clk 0:00:44.1]} 30... Rc1+ {[%clk
0:01:32.1]} 31. Kh2 {[%clk 0:00:43.4]} 31... Rc6 {[%clk 0:01:31.1]} 32. Rab7
{[%clk 0:00:41]} 32... Rf6 {[%clk 0:01:30.9]} 33. f3 {[%clk 0:00:40.5]} 33...
Ra8 {[%clk 0:01:30.8]} 34. Ra7 {[%clk 0:00:36.6]} 34... Rc8 {[%clk 0:01:30]} 35.
Rac7 {[%clk 0:00:35.6]} 35... Rf8 {[%clk 0:01:20.9]} 36. Rb7 {[%clk 0:00:34.9]}
36... h5 {[%clk 0:01:19.8]} 37. Kg3 {[%clk 0:00:34.2]} 37... Kg7 {[%clk
0:01:18.8]} 38. Rec7 {[%clk 0:00:33.8]} 38... Ra8 {[%clk 0:01:10.2]} 39. Ra7
{[%clk 0:00:33.2]} 39... Rd8 {[%clk 0:01:10]} 40. Rd7 {[%clk 0:00:32.8]} 40...
Rxd7 {[%clk 0:01:04.2]} 41. Rxd7 {[%clk 0:00:33.7]} 41... b5 {[%clk 0:01:04.5]}
42. Rb7 {[%clk 0:00:33]} 42... Ra6 {[%clk 0:01:04.1]} 43. Rxb5 {[%clk
0:00:32.3]} 43... Rxa2 {[%clk 0:01:04.2]} 44. h4 {[%clk 0:00:32.4]} 44... Ra4
{[%clk 0:01:03.3]} 45. Rb3 {[%clk 0:00:30.9]} 45... Kf6 {[%clk 0:01:01.9]} 46.
Rb6+ {[%clk 0:00:30.3]} 46... Kg7 {[%clk 0:01:02.3]} 47. Rb3 {[%clk 0:00:29.7]}
47... Rc4 {[%clk 0:01:01.3]} 48. Rb5 {[%clk 0:00:29]} 48... Kh6 {[%clk
0:00:56.6]} 49. Rb7 {[%clk 0:00:27.5]} 49... Kg7 {[%clk 0:00:56.6]} 50. Rb6
{[%clk 0:00:26.8]} 50... Rc5 {[%clk 0:00:55.9]} 51. Rb7 {[%clk 0:00:26.5]} 51...
Rf5 {[%clk 0:00:55.7]} 52. Rb6 {[%clk 0:00:25.7]} 52... Kh6 {[%clk 0:00:54]} 53.
Rb7 {[%clk 0:00:25.1]} 53... f6 {[%clk 0:00:52]} 54. Rf7 {[%clk 0:00:21.2]}
54... g5 {[%clk 0:00:45.2]} 55. hxg5+ {[%clk 0:00:20.4]} 55... Kxg5 {[%clk
0:00:44.1]} 56. Rb7 {[%clk 0:00:17.7]} 56... Kg6 {[%clk 0:00:43.5]} 57. Rb8
{[%clk 0:00:16.4]} 57... Rg5+ {[%clk 0:00:43.6]} 58. Kf2 {[%clk 0:00:15.7]}
58... Rc5 {[%clk 0:00:42.2]} 59. Kg3 {[%clk 0:00:15.1]} 59... Rc1 {[%clk
0:00:36.7]} 60. Rg8+ {[%clk 0:00:14.2]} 60... Kf5 {[%clk 0:00:36.7]} 61. Rh8
{[%clk 0:00:13.6]} 61... Rh1 {[%clk 0:00:36.5]} 62. Rg8 {[%clk 0:00:12.1]} 62...
h4+ {[%clk 0:00:35.9]} 63. Kf2 {[%clk 0:00:12.2]} 63... Kf4 {[%clk 0:00:30.6]}
64. Rg4+ {[%clk 0:00:11.6]} 64... Kf5 {[%clk 0:00:30.1]} 65. Re4 {[%clk
0:00:11.3]} 65... h3 {[%clk 0:00:29.1]} 66. gxh3 {[%clk 0:00:10.6]} 66... Rxh3
{[%clk 0:00:30]} 67. Kg2 {[%clk 0:00:10.7]} 67... Rh8 {[%clk 0:00:29.8]} 68. Rg4
{[%clk 0:00:10.3]} 68... Rb8 {[%clk 0:00:29.3]} 69. Rc4 {[%clk 0:00:09.1]} 69...
Rb3 {[%clk 0:00:28.5]} 70. Kg3 {[%clk 0:00:08.6]} 1/2-1/2

[Event "*** SCC Grand Prix: Titled Tuesday Blitz"]
[Site "Chess.com"]
[Date "2020.07.14"]
[Round "6"]
[White "Angry_Twin"]
[Black "Sibelephant"]
[Result "0-1"]
[WhiteElo "2766"]
[BlackElo "3130"]
[TimeControl "180+1"]
[EndTime "11:08:30 PDT"]
[Termination "Sibelephant won by checkmate"]

1. e4 {[%clk 0:03:00.9]} 1... c5 {[%clk 0:02:58.4]} 2. Nf3 {[%clk 0:03:01]} 2...
a6 {[%clk 0:02:58.9]} 3. g3 {[%clk 0:02:58.1]} 3... d5 {[%clk 0:02:51.5]} 4.
exd5 {[%clk 0:02:56.8]} 4... Qxd5 {[%clk 0:02:52.1]} 5. Bg2 {[%clk 0:02:57.1]}
5... Qe6+ {[%clk 0:02:52.3]} 6. Kf1 {[%clk 0:02:47.4]} 6... Nc6 {[%clk
0:02:51.9]} 7. Nc3 {[%clk 0:02:45.8]} 7... Nf6 {[%clk 0:02:48.5]} 8. d3 {[%clk
0:02:45.8]} 8... Qd6 {[%clk 0:02:29]} 9. Kg1 {[%clk 0:02:42.7]} 9... Bg4 {[%clk
0:02:25.2]} 10. h3 {[%clk 0:02:42.2]} 10... Bh5 {[%clk 0:02:25.4]} 11. Bg5
{[%clk 0:02:40.4]} 11... e6 {[%clk 0:02:12.9]} 12. Qd2 {[%clk 0:02:35.8]} 12...
Be7 {[%clk 0:02:10.4]} 13. Bxf6 {[%clk 0:02:35.2]} 13... gxf6 {[%clk 0:02:08.7]}
14. Re1 {[%clk 0:02:34.8]} 14... f5 {[%clk 0:02:02.1]} 15. Qh6 {[%clk
0:02:32.3]} 15... Bg6 {[%clk 0:01:58.4]} 16. h4 {[%clk 0:02:32.1]} 16... Bf8
{[%clk 0:01:49.2]} 17. Qd2 {[%clk 0:02:29]} 17... Bh5 {[%clk 0:01:46.6]} 18. Qg5
{[%clk 0:02:25.5]} 18... Bxf3 {[%clk 0:01:01]} 19. Bxf3 {[%clk 0:02:26.4]} 19...
Be7 {[%clk 0:00:59.4]} 20. Qd2 {[%clk 0:02:23.4]} 20... O-O-O {[%clk 0:00:57.6]}
21. Ne2 {[%clk 0:02:09.4]} 21... Rhg8 {[%clk 0:00:52.1]} 22. Bg2 {[%clk
0:01:40.9]} 22... Bf6 {[%clk 0:00:50.6]} 23. Nc3 {[%clk 0:01:27.4]} 23... Bd4
{[%clk 0:00:43.5]} 24. Kf1 {[%clk 0:01:20.1]} 24... Ne5 {[%clk 0:00:40.4]} 25.
Nd1 {[%clk 0:01:10.6]} 25... Ng4 {[%clk 0:00:30]} 26. Rh3 {[%clk 0:00:56.1]}
26... Kb8 {[%clk 0:00:22.7]} 27. Qe2 {[%clk 0:00:54.3]} 27... f4 {[%clk
0:00:19.4]} 28. Qf3 {[%clk 0:00:52.2]} 28... Rd7 {[%clk 0:00:14.4]} 29. Qxf4
{[%clk 0:00:45.8]} 29... Qxf4 {[%clk 0:00:14.3]} 30. gxf4 {[%clk 0:00:46.7]}
30... h5 {[%clk 0:00:15]} 31. Bf3 {[%clk 0:00:43.6]} 31... Bf6 {[%clk
0:00:13.9]} 32. b3 {[%clk 0:00:38.5]} 32... Bd8 {[%clk 0:00:11.6]} 33. Ne3
{[%clk 0:00:27.8]} 33... Rd4 {[%clk 0:00:11.5]} 34. Ng2 {[%clk 0:00:24.8]} 34...
Bc7 {[%clk 0:00:09.3]} 35. Re4 {[%clk 0:00:24.7]} 35... Rdd8 {[%clk 0:00:08.7]}
36. Bxg4 {[%clk 0:00:08.9]} 36... Rxg4 {[%clk 0:00:07.9]} 37. Rg3 {[%clk
0:00:09.4]} 37... Rdg8 {[%clk 0:00:07.7]} 38. Rxg4 {[%clk 0:00:09.6]} 38... Rxg4
{[%clk 0:00:08]} 39. f3 {[%clk 0:00:09.5]} 39... Rg3 {[%clk 0:00:07.7]} 40. Kf2
{[%clk 0:00:09.9]} 40... Rh3 {[%clk 0:00:08.1]} 41. f5 {[%clk 0:00:06.3]} 41...
Bg3+ {[%clk 0:00:08]} 42. Kg1 {[%clk 0:00:05.5]} 42... exf5 {[%clk 0:00:08.4]}
43. Re8+ {[%clk 0:00:06.1]} 43... Ka7 {[%clk 0:00:07.9]} 44. Re7 {[%clk
0:00:06.6]} 44... c4 {[%clk 0:00:04.7]} 45. Rxf7 {[%clk 0:00:02.6]} 45... Be5
{[%clk 0:00:03.8]} 46. Kf2 {[%clk 0:00:02.1]} 46... Bd4+ {[%clk 0:00:04]} 47.
Ke2 {[%clk 0:00:02.5]} 47... Rh2 {[%clk 0:00:04.5]} 48. Kf1 {[%clk 0:00:02.9]}
48... Rh1+ {[%clk 0:00:05]} 49. Ke2 {[%clk 0:00:03.5]} 49... Rh2 {[%clk
0:00:05]} 50. Kf1 {[%clk 0:00:03.6]} 50... c3 {[%clk 0:00:05.7]} 51. Rxf5 {[%clk
0:00:03.1]} 51... Rh1+ {[%clk 0:00:06.1]} 52. Ke2 {[%clk 0:00:03.6]} 52... Rc1
{[%clk 0:00:05]} 53. Ne3 {[%clk 0:00:03.2]} 53... Rh1 {[%clk 0:00:04.2]} 54. Ng2
{[%clk 0:00:03.2]} 54... Rc1 {[%clk 0:00:04.3]} 55. Ne3 {[%clk 0:00:03]} 55...
Rg1 {[%clk 0:00:04.6]} 56. Rf4 {[%clk 0:00:02.4]} 56... Be5 {[%clk 0:00:03.5]}
57. Rf5 {[%clk 0:00:02.4]} 57... Bg3 {[%clk 0:00:03.9]} 58. Rxh5 {[%clk
0:00:02.4]} 58... Re1# {[%clk 0:00:03.6]} 0-1

[Event "*** SCC Grand Prix: Titled Tuesday Blitz"]
[Site "Chess.com"]
[Date "2020.07.14"]
[Round "6"]
[White "Anton_Demchenko"]
[Black "Chigorinetz"]
[Result "0-1"]
[WhiteElo "2802"]
[BlackElo "2526"]
[TimeControl "180+1"]
[EndTime "11:08:30 PDT"]
[Termination "Chigorinetz won on time"]

1. d4 {[%clk 0:03:00.9]} 1... d5 {[%clk 0:02:59.2]} 2. Nf3 {[%clk 0:03:01.3]}
2... Nc6 {[%clk 0:02:58.4]} 3. Bf4 {[%clk 0:02:58.9]} 3... Bg4 {[%clk 0:02:58]}
4. Nbd2 {[%clk 0:02:56.9]} 4... e6 {[%clk 0:02:57.7]} 5. e3 {[%clk 0:02:56.6]}
5... Bd6 {[%clk 0:02:57.3]} 6. Bg3 {[%clk 0:02:56.7]} 6... Nf6 {[%clk
0:02:56.1]} 7. c4 {[%clk 0:02:52.8]} 7... O-O {[%clk 0:02:55]} 8. Be2 {[%clk
0:02:51.4]} 8... dxc4 {[%clk 0:02:54.8]} 9. Nxc4 {[%clk 0:02:50.5]} 9... Bb4+
{[%clk 0:02:54.6]} 10. Nfd2 {[%clk 0:02:49.7]} 10... Bxe2 {[%clk 0:02:50]} 11.
Qxe2 {[%clk 0:02:50.6]} 11... Ne4 {[%clk 0:02:32.4]} 12. a3 {[%clk 0:02:45.7]}
12... Nxd2 {[%clk 0:02:27.3]} 13. axb4 {[%clk 0:02:24.4]} 13... Nxc4 {[%clk
0:02:25.4]} 14. Qxc4 {[%clk 0:02:24.1]} 14... a6 {[%clk 0:02:25.8]} 15. O-O
{[%clk 0:02:16]} 15... Qd5 {[%clk 0:02:25.5]} 16. Qc3 {[%clk 0:02:03]} 16...
Rfc8 {[%clk 0:02:22.2]} 17. b3 {[%clk 0:02:00.3]} 17... Na7 {[%clk 0:02:05.4]}
18. Rfc1 {[%clk 0:01:58.8]} 18... Nb5 {[%clk 0:02:04.5]} 19. Qd3 {[%clk
0:01:55.8]} 19... h6 {[%clk 0:01:59.9]} 20. h3 {[%clk 0:01:51.2]} 20... c6
{[%clk 0:01:57.8]} 21. Rc5 {[%clk 0:01:45.4]} 21... Qd7 {[%clk 0:01:57.5]} 22.
Rac1 {[%clk 0:01:44.9]} 22... Re8 {[%clk 0:01:55.7]} 23. Qe2 {[%clk 0:01:39.1]}
23... Rad8 {[%clk 0:01:53.4]} 24. Bf4 {[%clk 0:01:36.1]} 24... Qe7 {[%clk
0:01:52.3]} 25. Qg4 {[%clk 0:01:32.4]} 25... Kh7 {[%clk 0:01:50.5]} 26. Be5
{[%clk 0:01:25.2]} 26... f6 {[%clk 0:01:47.1]} 27. Bg3 {[%clk 0:01:21.9]} 27...
Qf7 {[%clk 0:01:42.6]} 28. h4 {[%clk 0:01:16.8]} 28... Qg6 {[%clk 0:01:41.1]}
29. Qf3 {[%clk 0:01:16.7]} 29... Rd5 {[%clk 0:01:38]} 30. h5 {[%clk 0:01:07.4]}
30... Qd3 {[%clk 0:01:35.8]} 31. Qg4 {[%clk 0:01:00.4]} 31... Re7 {[%clk
0:01:21]} 32. Bh4 {[%clk 0:00:45.9]} 32... Nd6 {[%clk 0:01:14.4]} 33. Bg3 {[%clk
0:00:25.6]} 33... Nf7 {[%clk 0:01:12.5]} 34. R5c3 {[%clk 0:00:11.2]} 34... Qf5
{[%clk 0:01:07.8]} 35. Qxf5+ {[%clk 0:00:11.5]} 35... Rxf5 {[%clk 0:01:07.5]}
36. Rc5 {[%clk 0:00:12]} 36... e5 {[%clk 0:00:54.2]} 37. d5 {[%clk 0:00:12.1]}
37... cxd5 {[%clk 0:00:50.5]} 38. Rxd5 {[%clk 0:00:13]} 38... Rxh5 {[%clk
0:00:49.4]} 39. b5 {[%clk 0:00:13.6]} 39... axb5 {[%clk 0:00:48.4]} 40. Rxb5
{[%clk 0:00:14.5]} 40... Kg6 {[%clk 0:00:47.1]} 41. f3 {[%clk 0:00:14.5]} 41...
e4 {[%clk 0:00:45.4]} 42. Rxh5 {[%clk 0:00:11.3]} 42... Kxh5 {[%clk 0:00:45.6]}
43. Rc5+ {[%clk 0:00:12.2]} 43... g5 {[%clk 0:00:43.9]} 44. Kf2 {[%clk
0:00:07.9]} 44... Kg6 {[%clk 0:00:41.8]} 45. f4 {[%clk 0:00:06.9]} 45... f5
{[%clk 0:00:35.8]} 46. Rb5 {[%clk 0:00:06.9]} 46... Nd8 {[%clk 0:00:27.5]} 47.
Ke2 {[%clk 0:00:05.8]} 47... Kf7 {[%clk 0:00:26.7]} 48. Rb6 {[%clk 0:00:06]}
48... Re6 {[%clk 0:00:24.8]} 49. Rb5 {[%clk 0:00:05.4]} 49... Kf6 {[%clk
0:00:23.7]} 50. b4 {[%clk 0:00:05]} 50... Rc6 {[%clk 0:00:23.2]} 51. Kd2 {[%clk
0:00:05]} 51... Rd6+ {[%clk 0:00:22.4]} 52. Ke2 {[%clk 0:00:05.1]} 52... Ra6
{[%clk 0:00:22.1]} 53. fxg5+ {[%clk 0:00:03.7]} 53... hxg5 {[%clk 0:00:21.2]}
54. Be1 {[%clk 0:00:04.6]} 54... Ra2+ {[%clk 0:00:20.6]} 55. Kf1 {[%clk
0:00:05.1]} 55... Ke6 {[%clk 0:00:19.7]} 56. Bc3 {[%clk 0:00:05]} 56... Rc2
{[%clk 0:00:17.6]} 57. Bg7 {[%clk 0:00:03.4]} 57... f4 {[%clk 0:00:17.3]} 58.
Rxg5 {[%clk 0:00:02.3]} 58... fxe3 {[%clk 0:00:16.6]} 59. Re5+ {[%clk
0:00:02.7]} 59... Kf7 {[%clk 0:00:16.6]} 60. Bh6 {[%clk 0:00:03.2]} 60... Rf2+
{[%clk 0:00:15]} 61. Ke1 {[%clk 0:00:03.6]} 61... Rxg2 {[%clk 0:00:14.5]} 62.
Bxe3 {[%clk 0:00:03.4]} 62... Rg4 {[%clk 0:00:13.6]} 63. Rb5 {[%clk 0:00:02.7]}
63... Ke6 {[%clk 0:00:12.7]} 64. Kf2 {[%clk 0:00:01.9]} 64... Kd6 {[%clk
0:00:11.6]} 65. Rh5 {[%clk 0:00:01.5]} 65... Ne6 {[%clk 0:00:10.8]} 0-1